fUSD/lending_fUSD_20250826
["ID","MTS","AMOUNT","RATE_DAILY","PERIOD"]
[381415832,1756188652196,-400.0,0.00016712,2]
[381415833,1756188652206,-400.0,0.00016712,2]
[381415834,1756188652216,-400.0,0.00016712,2]
[381415835,1756188652225,-400.0,0.00016712,2]
[381415836,1756188652235,-400.0,0.00016712,2]
[381415837,1756188652252,-400.0,0.00016712,2]
[381415838,1756188652266,-400.0,0.00016712,2]
[381415839,1756188652276,-400.0,0.00016712,2]
[381415840,1756188652286,-400.0,0.00016712,2]
[381415841,1756188652295,-400.0,0.00016712,2]
[381415842,1756188652304,-409.82,0.00016712,2]
[381415843,1756188652315,-633.42,0.00016712,2]
[381415844,1756188652324,-400.0,0.00016712,2]
[381415845,1756188652334,-1055.35,0.00016712,2]
[381415846,1756188652345,-508.67,0.00016712,2]
[381415847,1756188652354,-1161.92,0.00016712,2]
[381415848,1756188652365,-673.5,0.00016712,2]
[381415849,1756188652374,-538.97,0.00016712,2]
[381415850,1756188652386,-400.0,0.00016712,2]
[381415851,1756188652395,-400.0,0.00016712,2]
[381415852,1756188652405,-400.0,0.00016712,2]
[381415853,1756188652415,-400.0,0.00016712,2]
[381415854,1756188652425,-953.71,0.00016712,2]
[381415855,1756188652434,-508.77,0.00016712,2]
[381415856,1756188652445,-400.0,0.00016712,2]
[381415857,1756188652455,-580.77,0.00016712,2]
[381415858,1756188652464,-400.0,0.00016712,2]
[381415859,1756188652475,-400.0,0.00016712,2]
[381415860,1756188652484,-400.0,0.00016712,2]
[381415861,1756188652494,-1384.6,0.00016712,2]
[381415862,1756188652503,-425.82,0.00016712,2]
[381415863,1756188652513,-561.44,0.00016712,2]
[381415864,1756188652522,-519.74,0.00016712,2]
[381415865,1756188652532,-400.0,0.00016712,2]
[381415866,1756188652542,-600.92,0.00016712,2]
[381415867,1756188652551,-1703.78,0.00016712,2]
[381415868,1756188652561,-463.24,0.00016712,2]
[381415869,1756188652571,-400.0,0.00016712,2]
[381415870,1756188652580,-922.72,0.00016712,2]
[381415871,1756188652591,-327.77,0.00016712,2]
[381415872,1756188652600,-193.27,0.00016712,2]
[381415873,1756188652610,-753.64,0.00016712,2]
[381415874,1756188652620,-400.0,0.00016712,2]
[381415875,1756188652629,-400.0,0.00016712,2]
[381415876,1756188652639,-741.08,0.00016712,2]
[381415877,1756188652648,-400.0,0.00016712,2]
[381415878,1756188652658,-400.0,0.00016712,2]
[381415879,1756188652668,-400.0,0.00016712,2]
[381415880,1756188652677,-400.0,0.00016712,2]
[381415881,1756188652686,-400.0,0.00016712,2]
[381415882,1756188652696,-400.0,0.00016712,2]
[381415883,1756188652705,-400.0,0.00016712,2]
[381415884,1756188652714,-400.0,0.00016712,2]
[381415885,1756188652724,-432.49,0.00016712,2]
[381415886,1756188652734,-1104.01,0.00016712,2]
[381415887,1756188652743,-480.76,0.00016712,2]
[381415888,1756188652753,-1514.02,0.00016712,2]
[381415889,1756188652762,-400.0,0.00016712,2]
[381415890,1756188652771,-993.33,0.00016712,2]
[381415891,1756188652781,-888.13,0.00016712,2]
[381415892,1756188652791,-1774.3,0.00016712,2]
[381415893,1756188652801,-914.66,0.00016712,2]
[381415894,1756188652810,-797.75,0.00016712,2]
[381415895,1756188652820,-1037.93,0.00016712,2]
[381415896,1756188652829,-874.18,0.00016712,2]
[381415897,1756188652841,-400.0,0.00016712,2]
[381415898,1756188652851,-522.10670601,0.00016712,2]
[381415899,1756188652861,-400.0,0.00016712,2]
[381415900,1756188652870,-400.0,0.00016712,2]
[381415901,1756188652880,-658.41,0.00016712,2]
[381415902,1756188652890,-427.84,0.00016712,2]
[381415903,1756188652900,-400.0,0.00016712,2]
[381415904,1756188652909,-976.77,0.00016712,2]
[381415905,1756188652918,-1095.3,0.00016712,2]
[381415906,1756188652928,-400.0,0.00016712,2]
[381415907,1756188652937,-4669.56,0.00016712,2]
[381415908,1756188652947,-400.0,0.00016712,2]
[381415909,1756188652956,-582.07,0.00016712,2]
[381415910,1756188652966,-1250.59,0.00016712,2]
[381415911,1756188652975,-523.65,0.00016712,2]
[381415912,1756188652984,-477.92,0.00016712,2]
[381415913,1756188652993,-400.0,0.00016712,2]
[381415914,1756188653003,-400.0,0.00016712,2]
[381415915,1756188653012,-1389.77,0.00016712,2]
[381415916,1756188653021,-430.8,0.00016712,2]
[381415917,1756188653031,-471.79,0.00016712,2]
[381415918,1756188653040,-400.0,0.00016712,2]
[381415919,1756188653049,-400.0,0.00016712,2]
[381415920,1756188653059,-400.0,0.00016712,2]
[381415921,1756188653068,-655.91,0.00016712,2]
[381415922,1756188653077,-1340.13,0.00016712,2]
[381415923,1756188653087,-2408.03,0.00016712,2]
[381415924,1756188653101,-400.0,0.00016712,2]
[381415925,1756188653115,-580.03,0.00016712,2]
[381415926,1756188653124,-432.50159308,0.00016712,2]
[381415927,1756188653134,-601.15,0.00016712,2]
[381415928,1756188653264,-511.98,0.00016712,2]
[381415929,1756188653275,-944.56,0.00016712,2]
[381415930,1756188653284,-400.0,0.00016712,2]
[381415931,1756188653293,-423.25,0.00016712,2]
[381415932,1756188653302,-400.0,0.00016712,2]
[381415933,1756188653311,-742.25,0.00016712,2]
[381415934,1756188653320,-400.0,0.00016712,2]
[381415935,1756188653330,-1049.81,0.00016712,2]
[381415936,1756188653341,-676.92,0.00016712,2]
[381415937,1756188653350,-525.29,0.00016712,2]
[381415938,1756188653359,-1250.96,0.00016712,2]
[381415939,1756188653368,-400.0,0.00016712,2]
[381415940,1756188653377,-711.72,0.00016712,2]
[381415941,1756188653386,-151.53974375,0.00016712,2]
[381415942,1756188653396,-793.89,0.00016712,2]
[381415943,1756188653407,-1464.57,0.00016712,2]
[381415944,1756188653417,-400.0,0.00016712,2]
[381415945,1756188653427,-550.69,0.00016712,2]
[381415946,1756188653438,-688.73,0.00016712,2]
[381415947,1756188653447,-400.0,0.00016712,2]
[381415948,1756188653456,-625.17,0.00016712,2]
[381415949,1756188653466,-999.1,0.00016712,2]
[381415950,1756188653475,-776.78,0.00016712,2]
[381415951,1756188653484,-456.85,0.00016712,2]
[381415952,1756188653494,-832.94,0.00016712,2]
[381415953,1756188653506,-400.0,0.00016712,2]
[381415954,1756188653515,-1073.92,0.00016712,2]
[381415955,1756188653526,-400.0,0.00016712,2]
[381415956,1756188653536,-602.58,0.00016712,2]
[381415957,1756188653545,-400.0,0.00016712,2]
[381415958,1756188653554,-400.0,0.00016712,2]
[381415959,1756188653563,-671.62,0.00016712,2]
[381415960,1756188653572,-4578.51,0.00016712,2]
[381415961,1756188653581,-494.57,0.00016712,2]
[381415962,1756188653591,-527.35,0.00016712,2]
[381415963,1756188653600,-605.34,0.00016712,2]
[381415964,1756188653609,-683.34,0.00016712,2]
[381415965,1756188653618,-936.87,0.00016712,2]
[381415966,1756188653627,-876.76,0.00016712,2]
[381415967,1756188653636,-596.89,0.00016712,2]
[381415968,1756188653646,-664.76,0.00016712,2]
[381415969,1756188653655,-866.12,0.00016712,2]
[381415970,1756188653664,-729.62,0.00016712,2]
[381415971,1756188653673,-601.14,0.00016712,2]
[381415972,1756188653682,-1173.98,0.00016712,2]
[381415973,1756188653692,-622.4,0.00016712,2]
[381415974,1756188653702,-1009.02,0.00016712,2]
[381415975,1756188653711,-743.53,0.00016712,2]
[381415976,1756188653720,-1274.93,0.00016712,2]
[381415977,1756188653730,-513.0,0.00016712,2]
[381415978,1756188653741,-439.35,0.00016712,2]
[381415979,1756188653751,-1393.5,0.00016712,2]
[381415980,1756188653762,-400.0,0.00016712,2]
[381415981,1756188653773,-469.3,0.00016712,2]
[381415982,1756188653783,-1170.91,0.00016712,2]
[381415983,1756188653794,-922.05,0.00016712,2]
[381415984,1756188653805,-796.98,0.00016712,2]
[381415985,1756188653815,-795.8,0.00016712,2]
[381415986,1756188653826,-1157.98,0.00016712,2]
[381415987,1756188653836,-400.0,0.00016712,2]
[381415988,1756188653847,-400.0,0.00016712,2]
[381415989,1756188653857,-400.0,0.00016712,2]
[381415990,1756188653866,-593.55,0.00016712,2]
[381415991,1756188653876,-885.9,0.00016712,2]
[381415992,1756188653887,-687.44,0.00016712,2]
[381415993,1756188653897,-1057.57,0.00016712,2]
[381415994,1756188653907,-866.88,0.00016712,2]
[381415995,1756188653918,-400.0,0.00016712,2]
[381415996,1756188653928,-594.34,0.00016712,2]
[381415997,1756188653938,-400.0,0.00016712,2]
[381415998,1756188653947,-516.0,0.00016712,2]
[381415999,1756188653958,-400.0,0.00016712,2]
[381416000,1756188653968,-400.0,0.00016712,2]
[381416001,1756188653978,-400.0,0.00016712,2]
[381416002,1756188653987,-400.0,0.00016712,2]
[381416003,1756188653997,-400.0,0.00016712,2]
[381416004,1756188654008,-587.33,0.00016712,2]
[381416005,1756188654017,-400.0,0.00016712,2]
[381416006,1756188654027,-400.0,0.00016712,2]
[381416007,1756188654038,-1000.0,0.00016712,2]
[381416008,1756188654048,-400.0,0.00016712,2]
[381416009,1756188654059,-744.08,0.00016712,2]
[381416010,1756188654068,-400.0,0.00016712,2]
[381416011,1756188654079,-622.19,0.00016712,2]
[381416012,1756188654088,-1319.13,0.00016712,2]
[381416013,1756188654098,-1281.93,0.00016712,2]
[381416014,1756188654110,-599.18,0.00016712,2]
[381416015,1756188654120,-400.0,0.00016712,2]
[381416016,1756188654130,-517.15,0.00016712,2]
[381416017,1756188654140,-1950.58,0.00016712,2]
[381416018,1756188654149,-400.0,0.00016712,2]
[381416019,1756188654159,-705.07,0.00016712,2]
[381416020,1756188654168,-828.82,0.00016712,2]
[381416021,1756188654180,-1003.41,0.00016712,2]
[381416022,1756188654190,-870.87,0.00016712,2]
[381416023,1756188654199,-400.0,0.00016712,2]
[381416024,1756188654208,-400.0,0.00016712,2]
[381416025,1756188654218,-400.0,0.00016712,2]
[381416026,1756188654227,-1566.3,0.00016712,2]
[381416027,1756188654238,-532.53685763,0.00016712,2]
[381416028,1756188654247,-661.34,0.00016712,2]
[381416029,1756188654257,-457.43,0.00016712,2]
[381416030,1756188654269,-544.33,0.00016712,2]
[381416031,1756188654279,-400.0,0.00016712,2]
[381416032,1756188654289,-1480.99,0.00016712,2]
[381416033,1756188654299,-724.63,0.00016712,2]
[381416034,1756188654308,-410.09,0.00016712,2]
[381416035,1756188654318,-643.97,0.00016712,2]
[381416036,1756188654328,-400.0,0.00016712,2]
[381416037,1756188654337,-401.9515022,0.00016712,2]
[381416038,1756188654348,-1320.14,0.00016712,2]
[381416039,1756188654357,-866.64,0.00016712,2]
[381416040,1756188654366,-400.0,0.00016712,2]
[381416041,1756188654376,-400.0,0.00016712,2]
[381416042,1756188654387,-1290.57,0.00016712,2]
[381416043,1756188654398,-400.0,0.00016712,2]
[381416044,1756188654409,-614.16,0.00016712,2]
[381416045,1756188654420,-400.0,0.00016712,2]
[381416046,1756188654430,-501.9,0.00016712,2]
[381416047,1756188654441,-1356.06,0.00016712,2]
[381416048,1756188654452,-400.0,0.00016712,2]
[381416049,1756188654464,-764.97,0.00016712,2]
[381416050,1756188654473,-893.64,0.00016712,2]
[381416051,1756188654483,-1141.96,0.00016712,2]
[381416052,1756188654493,-1306.59,0.00016712,2]
[381416053,1756188654502,-614.01,0.00016712,2]
[381416054,1756188654512,-400.0,0.00016712,2]
[381416055,1756188654521,-548.8,0.00016712,2]
[381416056,1756188654530,-400.0,0.00016712,2]
[381416057,1756188654539,-400.0,0.00016712,2]
[381416058,1756188654548,-1048.45,0.00016712,2]
[381416059,1756188654557,-400.0,0.00016712,2]
[381416060,1756188654566,-460.86,0.00016712,2]
[381416061,1756188654575,-400.0,0.00016712,2]
[381416062,1756188654584,-467.97,0.00016712,2]
[381416063,1756188654595,-891.55,0.00016712,2]
[381416064,1756188654604,-262.77228093,0.00016712,2]
[381416065,1756188654614,-941.06,0.00016712,2]
[381416066,1756188654623,-673.66,0.00016712,2]
[381416067,1756188654631,-400.0,0.00016712,2]
[381416068,1756188654641,-755.09,0.00016712,2]
[381416069,1756188654649,-1022.09,0.00016712,2]
[381416070,1756188654659,-400.0,0.00016712,2]
[381416071,1756188654667,-400.0,0.00016712,2]
[381416072,1756188654677,-1021.54,0.00016712,2]
[381416073,1756188654686,-400.0,0.00016712,2]
[381416074,1756188654695,-595.04,0.00016712,2]
[381416075,1756188654704,-400.0,0.00016712,2]
[381416076,1756188654713,-400.0,0.00016712,2]
[381416077,1756188654722,-400.0,0.00016712,2]
[381416078,1756188654731,-400.0,0.00016712,2]
[381416079,1756188654740,-400.0,0.00016712,2]
[381416080,1756188654750,-570.85,0.00016712,2]
[381416081,1756188654759,-419.43,0.00016712,2]
[381416082,1756188654768,-2493.06,0.00016712,2]
[381416083,1756188654777,-1121.32,0.00016712,2]
[381416084,1756188654786,-380.96,0.00016712,2]
[381416085,1756188654795,-1468.69,0.00016712,2]
[381416086,1756188654803,-400.0,0.00016712,2]
[381416087,1756188654812,-785.58,0.00016712,2]
[381416088,1756188654821,-746.36,0.00016712,2]
[381416089,1756188654830,-822.2,0.00016712,2]
[381416090,1756188654840,-1258.5,0.00016712,2]
[381416091,1756188654849,-1204.79,0.00016712,2]
[381416092,1756188654858,-400.0,0.00016712,2]
[381416093,1756188654867,-587.75,0.00016712,2]
[381416094,1756188654876,-400.0,0.00016712,2]
[381416095,1756188654885,-1098.61,0.00016712,2]
[381416096,1756188654894,-1174.63,0.00016712,2]
[381416097,1756188654903,-400.0,0.00016712,2]
[381416098,1756188654913,-442.42,0.00016712,2]
[381416099,1756188654922,-1207.86,0.00016712,2]
[381416100,1756188654932,-400.0,0.00016712,2]
[381416101,1756188654941,-400.0,0.00016712,2]
[381416102,1756188654951,-681.08,0.00016712,2]
[381416103,1756188654960,-1100.12,0.00016712,2]
[381416104,1756188654969,-1279.13,0.00016712,2]
[381416105,1756188654979,-653.67,0.00016712,2]
[381416106,1756188654988,-400.0,0.00016712,2]
[381416107,1756188654998,-400.0,0.00016712,2]
[381416108,1756188655008,-400.0,0.00016712,2]
[381416109,1756188655017,-1199.3,0.00016712,2]
[381416110,1756188655026,-400.0,0.00016712,2]
[381416111,1756188655035,-400.0,0.00016712,2]
[381416112,1756188655045,-795.5,0.00016712,2]
[381416113,1756188655054,-616.8,0.00016712,2]
[381416114,1756188655063,-1204.7,0.00016712,2]
[381416115,1756188655073,-400.0,0.00016712,2]
[381416116,1756188655082,-530.57,0.00016712,2]
[381416117,1756188655092,-471.73,0.00016712,2]
[381416118,1756188655102,-435.11,0.00016712,2]
[381416119,1756188655115,-460.31,0.00016712,2]
[381416120,1756188655125,-400.0,0.00016712,2]
[381416121,1756188655134,-400.0,0.00016712,2]
[381416122,1756188655143,-400.0,0.00016712,2]
[381416123,1756188655153,-400.0,0.00016712,2]
[381416124,1756188655162,-400.0,0.00016712,2]
[381416125,1756188655171,-400.0,0.00016712,2]
[381416126,1756188655181,-425.82,0.00016712,2]
[381416127,1756188655190,-400.0,0.00016712,2]
[381416128,1756188655201,-400.0,0.00016712,2]
[381416129,1756188655210,-1296.51,0.00016712,2]
[381416130,1756188655219,-400.0,0.00016712,2]
[381416131,1756188655228,-400.0,0.00016712,2]
[381416132,1756188655237,-551.39,0.00016712,2]
[381416133,1756188655247,-400.0,0.00016712,2]
[381416134,1756188655256,-400.0,0.00016712,2]
[381416135,1756188655265,-400.0,0.00016712,2]
[381416136,1756188655275,-832.46,0.00016712,2]
[381416137,1756188655285,-633.56,0.00016712,2]
[381416138,1756188655293,-400.0,0.00016712,2]
[381416139,1756188655303,-767.01,0.00016712,2]
[381416140,1756188655312,-400.0,0.00016712,2]
[381416141,1756188655321,-1373.34,0.00016712,2]
[381416142,1756188655330,-1847.54,0.00016712,2]
[381416143,1756188655340,-406.49,0.00016712,2]
[381416144,1756188655350,-1005.05,0.00016712,2]
[381416145,1756188655359,-631.76,0.00016712,2]
[381416146,1756188655369,-400.0,0.00016712,2]
[381416147,1756188655378,-400.0,0.00016712,2]
[381416148,1756188655387,-1137.85,0.00016712,2]
[381416149,1756188655397,-459.5,0.00016712,2]
[381416150,1756188655406,-400.0,0.00016712,2]
[381416151,1756188655416,-400.0,0.00016712,2]
[381416152,1756188655425,-400.0,0.00016712,2]
[381416153,1756188655434,-400.0,0.00016712,2]
[381416154,1756188655444,-400.0,0.00016712,2]
[381416155,1756188655453,-400.0,0.00016712,2]
[381416156,1756188655463,-400.0,0.00016712,2]
[381416157,1756188655472,-1290.3,0.00016712,2]
[381416158,1756188655481,-1138.01,0.00016712,2]
[381416159,1756188655490,-400.0,0.00016712,2]
[381416160,1756188655499,-414.49,0.00016712,2]
[381416161,1756188655508,-719.63,0.00016712,2]
[381416162,1756188655517,-400.0,0.00016712,2]
[381416163,1756188655527,-400.0,0.00016712,2]
[381416164,1756188655536,-400.0,0.00016712,2]
[381416165,1756188655545,-417.46,0.00016712,2]
[381416166,1756188655555,-400.0,0.00016712,2]
[381416167,1756188655564,-771.06,0.00016712,2]
[381416168,1756188655575,-400.0,0.00016712,2]
[381416169,1756188655586,-498.18,0.00016712,2]
[381416170,1756188655596,-1617.06,0.00016712,2]
[381416171,1756188655606,-400.0,0.00016712,2]
[381416172,1756188655615,-400.0,0.00016712,2]
[381416173,1756188655624,-400.0,0.00016712,2]
[381416174,1756188655633,-845.72,0.00016712,2]
[381416175,1756188655642,-400.0,0.00016712,2]
[381416176,1756188655652,-423.95,0.00016712,2]
[381416177,1756188655662,-400.0,0.00016712,2]
[381416178,1756188655672,-400.0,0.00016712,2]
[381416179,1756188655681,-511.5,0.00016712,2]
[381416180,1756188655690,-400.0,0.00016712,2]
[381416181,1756188655698,-942.52,0.00016712,2]
[381416182,1756188655707,-489.77,0.00016712,2]
[381416183,1756188655715,-784.75,0.00016712,2]
[381416184,1756188655724,-400.0,0.00016712,2]
[381416185,1756188655733,-400.0,0.00016712,2]
[381416186,1756188655743,-566.99,0.00016712,2]
[381416187,1756188655752,-400.0,0.00016712,2]
[381416188,1756188655762,-400.0,0.00016712,2]
[381416189,1756188655771,-400.0,0.00016712,2]
[381416190,1756188655780,-1059.62,0.00016712,2]
[381416191,1756188655789,-1672.39,0.00016712,2]
[381416192,1756188655798,-904.63,0.00016712,2]
[381416193,1756188655807,-910.29,0.00016712,2]
[381416194,1756188655816,-1056.67,0.00016712,2]
[381416195,1756188655826,-1517.59,0.00016712,2]
[381416196,1756188655835,-400.0,0.00016712,2]
[381416197,1756188655846,-400.0,0.00016712,2]
[381416198,1756188655855,-934.71,0.00016712,2]
[381416199,1756188655864,-400.0,0.00016712,2]
[381416200,1756188655873,-1296.24,0.00016712,2]
[381416201,1756188655883,-400.0,0.00016712,2]
[381416202,1756188655891,-400.0,0.00016712,2]
[381416203,1756188655900,-833.83,0.00016712,2]
[381416204,1756188655910,-400.0,0.00016712,2]
[381416205,1756188655919,-598.64,0.00016712,2]
[381416206,1756188655929,-705.15,0.00016712,2]
[381416207,1756188655938,-434.92,0.00016712,2]
[381416208,1756188655948,-400.0,0.00016712,2]
[381416209,1756188655957,-1265.34,0.00016712,2]
[381416210,1756188655967,-1497.08,0.00016712,2]
[381416211,1756188655976,-1062.65,0.00016712,2]
[381416212,1756188655985,-658.6,0.00016712,2]
[381416213,1756188655994,-857.37,0.00016712,2]
[381416214,1756188656004,-400.0,0.00016712,2]
[381416215,1756188656014,-1193.65,0.00016712,2]
[381416216,1756188656023,-490.14,0.00016712,2]
[381416217,1756188656032,-401.36,0.00016712,2]
[381416218,1756188656042,-621.71,0.00016712,2]
[381416219,1756188656051,-1065.51,0.00016712,2]
[381416220,1756188656060,-400.0,0.00016712,2]
[381416221,1756188656070,-400.0,0.00016712,2]
[381416222,1756188656079,-605.5,0.00016712,2]
[381416223,1756188656089,-400.0,0.00016712,2]
[381416224,1756188656099,-400.0,0.00016712,2]
[381416225,1756188656113,-400.0,0.00016712,2]
[381416226,1756188656123,-1019.9,0.00016712,2]
[381416227,1756188656133,-400.0,0.00016712,2]
[381416228,1756188656143,-629.51,0.00016712,2]
[381416229,1756188656152,-718.24,0.00016712,2]
[381416230,1756188656162,-400.0,0.00016712,2]
[381416231,1756188656171,-402.84,0.00016712,2]
[381416232,1756188656182,-829.91,0.00016712,2]
[381416233,1756188656192,-824.59,0.00016712,2]
[381416234,1756188656202,-739.42,0.00016712,2]
[381416235,1756188656211,-456.36,0.00016712,2]
[381416236,1756188656221,-708.33,0.00016712,2]
[381416237,1756188656232,-918.72,0.00016712,2]
[381416238,1756188656241,-749.3,0.00016712,2]
[381416239,1756188656250,-400.0,0.00016712,2]
[381416240,1756188656260,-949.48,0.00016712,2]
[381416241,1756188656270,-400.0,0.00016712,2]
[381416242,1756188656279,-1484.68,0.00016712,2]
[381416243,1756188656289,-1183.69,0.00016712,2]
[381416244,1756188656298,-586.05,0.00016712,2]
[381416245,1756188656307,-629.56,0.00016712,2]
[381416246,1756188656317,-1064.5,0.00016712,2]
[381416247,1756188656326,-589.05,0.00016712,2]
[381416248,1756188656336,-534.08871774,0.00016712,2]
[381416249,1756188656346,-707.54,0.00016712,2]
[381416250,1756188656355,-400.0,0.00016712,2]
[381416251,1756188656365,-1267.55,0.00016712,2]
[381416252,1756188656374,-400.0,0.00016712,2]
[381416253,1756188656383,-954.82,0.00016712,2]
[381416254,1756188656392,-680.13,0.00016712,2]
[381416255,1756188656401,-565.91,0.00016712,2]
[381416256,1756188656411,-400.0,0.00016712,2]
[381416257,1756188656420,-900.88,0.00016712,2]
[381416258,1756188656430,-1016.41,0.00016712,2]
[381416259,1756188656439,-611.54,0.00016712,2]
[381416260,1756188656449,-485.19,0.00016712,2]
[381416261,1756188656458,-1961.06,0.00016712,2]
[381416262,1756188656468,-400.0,0.00016712,2]
[381416263,1756188656478,-1231.45,0.00016712,2]
[381416264,1756188656488,-400.0,0.00016712,2]
[381416265,1756188656498,-400.0,0.00016712,2]
[381416266,1756188656508,-400.0,0.00016712,2]
[381416267,1756188656518,-1479.0,0.00016712,2]
[381416268,1756188656528,-488.59,0.00016712,2]
[381416269,1756188656539,-538.7,0.00016712,2]
[381416270,1756188656549,-1170.29,0.00016712,2]
[381416271,1756188656560,-494.21,0.00016712,2]
[381416272,1756188656570,-400.0,0.00016712,2]
[381416273,1756188656580,-431.95,0.00016712,2]
[381416274,1756188656590,-400.0,0.00016712,2]
[381416275,1756188656599,-630.62,0.00016712,2]
[381416276,1756188656608,-400.0,0.00016712,2]
[381416277,1756188656618,-400.0,0.00016712,2]
[381416278,1756188656628,-400.0,0.00016712,2]
[381416279,1756188656639,-1973.21,0.00016712,2]
[381416280,1756188656648,-654.42,0.00016712,2]
[381416281,1756188656659,-413.95,0.00016712,2]
[381416282,1756188656668,-432.07,0.00016712,2]
[381416283,1756188656677,-400.0,0.00016712,2]
[381416284,1756188656686,-1101.41,0.00016712,2]
[381416285,1756188656695,-400.49,0.00016712,2]
[381416286,1756188656704,-458.63,0.00016712,2]
[381416287,1756188656714,-400.0,0.00016712,2]
[381416288,1756188656723,-1140.81,0.00016712,2]
[381416289,1756188656732,-1541.5,0.00016712,2]
[381416290,1756188656741,-400.0,0.00016712,2]
[381416291,1756188656752,-677.53,0.00016712,2]
[381416292,1756188656762,-586.1,0.00016712,2]
[381416293,1756188656771,-400.0,0.00016712,2]
[381416294,1756188656781,-400.0,0.00016712,2]
[381416295,1756188656792,-400.0,0.00016712,2]
[381416296,1756188656802,-954.19,0.00016712,2]
[381416297,1756188656812,-400.0,0.00016712,2]
[381416298,1756188656821,-992.43,0.00016712,2]
[381416299,1756188656832,-400.0,0.00016712,2]
[381416300,1756188656843,-400.0,0.00016712,2]
[381416301,1756188656852,-986.85,0.00016712,2]
[381416302,1756188656861,-1259.42,0.00016712,2]
[381416303,1756188656871,-1152.15,0.00016712,2]
[381416304,1756188656884,-400.0,0.00016712,2]
[381416305,1756188656893,-400.0,0.00016712,2]
[381416306,1756188656902,-400.0,0.00016712,2]
[381416307,1756188656911,-400.0,0.00016712,2]
[381416308,1756188656920,-400.0,0.00016712,2]
[381416309,1756188656929,-400.0,0.00016712,2]
[381416310,1756188656938,-624.06,0.00016712,2]
[381416311,1756188656947,-1225.96,0.00016712,2]
[381416312,1756188656958,-557.75,0.00016712,2]
[381416313,1756188656967,-400.0,0.00016712,2]
[381416314,1756188656978,-601.53,0.00016712,2]
[381416315,1756188656988,-595.95,0.00016712,2]
[381416316,1756188656999,-510.3714582,0.00016712,2]
[381416317,1756188657008,-594.6,0.00016712,2]
[381416318,1756188657019,-1400.87,0.00016712,2]
[381416319,1756188657028,-936.73,0.00016712,2]
[381416320,1756188657037,-400.0,0.00016712,2]
[381416321,1756188657047,-400.0,0.00016712,2]
[381416322,1756188657056,-448.8,0.00016712,2]
[381416323,1756188657065,-766.85,0.00016712,2]
[381416324,1756188657074,-400.0,0.00016712,2]
[381416325,1756188657084,-649.45,0.00016712,2]
[381416326,1756188657093,-1134.88,0.00016712,2]
[381416327,1756188657102,-400.0,0.00016712,2]
[381416328,1756188657115,-400.0,0.00016712,2]
[381416329,1756188657124,-400.0,0.00016712,2]
[381416330,1756188657133,-983.19,0.00016712,2]
[381416331,1756188657142,-1049.28,0.00016712,2]